lending/lending_fUSD_20240723
["ID","MTS","AMOUNT","RATE_DAILY","PERIOD"]
[332943242,1721695834231,-500.0,0.00010958,2]
[332943243,1721695834241,-500.0,0.00010958,2]
[332943244,1721695834251,-3833.33,0.00010958,2]
[332943245,1721695834260,-2150.68,0.00010958,2]
[332943246,1721695834270,-3862.89,0.00010958,2]
[332943247,1721695834280,-500.0,0.00010958,2]
[332943248,1721695834289,-500.0,0.00010958,2]
[332943249,1721695834298,-500.0,0.00010958,2]
[332943250,1721695834307,-500.0,0.00010958,2]
[332943251,1721695834317,-6229.74,0.00010958,2]
[332943252,1721695834326,-596.42,0.00010958,2]
[332943253,1721695834335,-652.88,0.00010958,2]
[332943254,1721695834344,-2551.6,0.00010958,2]
[332943255,1721695834354,-500.0,0.00010958,2]
[332943256,1721695834363,-500.0,0.00010958,2]
[332943257,1721695834372,-500.0,0.00010958,2]
[332943258,1721695834382,-529.02,0.00010958,2]
[332943259,1721695834391,-500.0,0.00010958,2]
[332943260,1721695834401,-500.0,0.00010958,2]
[332943261,1721695834410,-500.0,0.00010958,2]
[332943262,1721695834419,-1080.84,0.00010958,2]
[332943263,1721695834429,-500.93,0.00010958,2]
[332943264,1721695834438,-6602.23,0.00010958,2]
[332943265,1721695834447,-763.85,0.00010958,2]
[332943266,1721695834456,-500.0,0.00010958,2]
[332943267,1721695834465,-500.0,0.00010958,2]
[332943268,1721695834475,-3123.08,0.00010958,2]
[332943269,1721695834484,-500.0,0.00010958,2]
[332943270,1721695834495,-500.0,0.00010958,2]
[332943271,1721695834505,-1490.02,0.00010958,2]
[332943272,1721695834514,-500.0,0.00010958,2]
[332943273,1721695834524,-500.0,0.00010958,2]
[332943274,1721695834533,-2226.58,0.00010958,2]
[332943275,1721695834542,-504.83,0.00010958,2]
[332943276,1721695834551,-500.0,0.00010958,2]
[332943277,1721695834561,-500.59,0.00010958,2]
[332943278,1721695834570,-500.0,0.00010958,2]
[332943279,1721695834580,-797.67,0.00010958,2]
[332943280,1721695834589,-1798.06,0.00010958,2]
[332943281,1721695834599,-3157.45,0.00010958,2]
[332943282,1721695834608,-500.0,0.00010958,2]
[332943283,1721695834617,-500.0,0.00010958,2]
[332943284,1721695834627,-538.18,0.00010958,2]
[332943285,1721695834636,-500.0,0.00010958,2]
[332943286,1721695834646,-698.66,0.00010958,2]
[332943287,1721695834655,-1796.35,0.00010958,2]
[332943288,1721695834665,-2202.41,0.00010958,2]
[332943289,1721695834675,-500.0,0.00010958,2]
[332943290,1721695834684,-501.6962358,0.00010958,2]
[332943291,1721695834694,-500.0,0.00010958,2]
[332943292,1721695834703,-500.0,0.00010958,2]
[332943293,1721695834712,-500.0,0.00010958,2]
[332943294,1721695834721,-2945.58,0.00010958,2]
[332943295,1721695834731,-2867.1,0.00010958,2]
[332943296,1721695834740,-624.75,0.00010958,2]
[332943297,1721695834752,-565.69,0.00010958,2]
[332943298,1721695834762,-4783.31,0.00010958,2]
[332943299,1721695834772,-500.0,0.00010958,2]
[332943300,1721695834781,-3816.18,0.00010958,2]
[332943301,1721695834791,-500.0,0.00010958,2]
[332943302,1721695834800,-500.0,0.00010958,2]
[332943303,1721695834809,-500.0,0.00010958,2]
[332943304,1721695834819,-1351.76,0.00010958,2]
[332943305,1721695834828,-3969.32,0.00010958,2]
[332943306,1721695834841,-500.0,0.00010958,2]
[332943307,1721695834850,-2497.61,0.00010958,2]
[332943308,1721695834860,-500.0,0.00010958,2]
[332943309,1721695834869,-939.52,0.00010958,2]
[332943310,1721695834879,-500.0,0.00010958,2]
[332943311,1721695834888,-500.0,0.00010958,2]
[332943312,1721695834898,-500.0,0.00010958,2]
[332943313,1721695834907,-500.0,0.00010958,2]
[332943314,1721695834917,-500.0,0.00010958,2]
[332943315,1721695834927,-500.0,0.00010958,2]
[332943316,1721695834936,-1841.55,0.00010958,2]
[332943317,1721695834945,-500.0,0.00010958,2]
[332943318,1721695834955,-500.0,0.00010958,2]
[332943319,1721695834964,-2967.76,0.00010958,2]
[332943320,1721695834974,-536.17,0.00010958,2]
[332943321,1721695834983,-3454.96,0.00010958,2]
[332943322,1721695834994,-2771.81,0.00010958,2]
[332943323,1721695835004,-500.0,0.00010958,2]
[332943324,1721695835013,-753.13,0.00010958,2]
[332943325,1721695835022,-500.0,0.00010958,2]
[332943326,1721695835032,-500.0,0.00010958,2]
[332943327,1721695835041,-835.06,0.00010958,2]
[332943328,1721695835051,-8548.84,0.00010958,2]
[332943329,1721695835060,-768.32,0.00010958,2]
[332943330,1721695835070,-3011.41,0.00010958,2]
[332943331,1721695835079,-500.0,0.00010958,2]
[332943332,1721695835088,-5276.36,0.00010958,2]
[332943333,1721695835099,-1871.53,0.00010958,2]
[332943334,1721695835108,-500.0,0.00010958,2]
[332943335,1721695835118,-7772.44,0.00010958,2]
[332943336,1721695835127,-1188.86,0.00010958,2]
[332943337,1721695835136,-1108.25,0.00010958,2]
[332943338,1721695835145,-500.0,0.00010958,2]
[332943339,1721695835155,-8216.8,0.00010958,2]
[332943340,1721695835164,-3016.31,0.00010958,2]
[332943341,1721695835174,-866.8,0.00010958,2]
[332943342,1721695835183,-1880.06,0.00010958,2]
[332943343,1721695835192,-2559.16,0.00010958,2]
[332943344,1721695835202,-9037.36,0.00010958,2]
[332943345,1721695835211,-3445.62,0.00010958,2]
[332943346,1721695835220,-500.0,0.00010958,2]
[332943347,1721695835229,-1100.7,0.00010958,2]
[332943348,1721695835239,-13553.41,0.00010958,2]
[332943349,1721695835251,-500.0,0.00010958,2]
[332943350,1721695835260,-4739.47,0.00010958,2]
[332943351,1721695835270,-3231.88,0.00010958,2]
[332943352,1721695835279,-500.0,0.00010958,2]
[332943353,1721695835288,-500.0,0.00010958,2]
[332943354,1721695835297,-500.0,0.00010958,2]
[332943355,1721695835307,-500.0,0.00010958,2]
[332943356,1721695835315,-2990.31,0.00010958,2]
[332943357,1721695835325,-6868.86,0.00010958,2]
[332943358,1721695835334,-500.0,0.00010958,2]
[332943359,1721695835343,-500.0,0.00010958,2]
[332943360,1721695835353,-150.0,0.00010964,2]
[332943361,1721695835363,-150.0,0.00010964,2]
[332943362,1721695835372,-150.0,0.00010965,2]
[332943363,1721695835382,-150.0,0.00010968,2]
[332943364,1721695835391,-150.0,0.00010968,2]
[332943365,1721695835400,-150.0,0.00010976,2]
[332943366,1721695835409,-150.0,0.00010978,2]
[332943367,1721695835419,-500.0,0.00010984,2]
[332943368,1721695835428,-500.0,0.00010984,2]
[332943369,1721695835437,-500.0,0.00010984,2]
[332943370,1721695835447,-509.82,0.00010984,2]
[332943371,1721695835456,-3775.92,0.00010984,2]
[332943372,1721695835465,-978.91,0.00010984,2]
[332943373,1721695835474,-1728.5,0.00010984,2]
[332943374,1721695835483,-672.46,0.00010984,2]
[332943375,1721695835492,-586.03,0.00010984,2]
[332943376,1721695835502,-3993.3,0.00010984,2]
[332943377,1721695835511,-1140.08,0.00010984,2]
[332943378,1721695835520,-852.86,0.00010984,2]
[332943379,1721695835529,-2271.32,0.00010984,2]
[332943380,1721695835539,-1009.98,0.00010984,2]
[332943381,1721695835548,-3065.72,0.00010984,2]
[332943382,1721695835557,-500.0,0.00010984,2]
[332943383,1721695835567,-1994.69,0.00010984,2]
[332943384,1721695835576,-3483.22,0.00010984,2]
[332943385,1721695835585,-1651.61,0.00010984,2]
[332943386,1721695835594,-1158.17,0.00010984,2]
[332943387,1721695835603,-1665.78,0.00010984,2]
[332943388,1721695835613,-955.74,0.00010984,2]
[332943389,1721695835622,-1313.08,0.00010984,2]
[332943390,1721695835750,-500.0,0.00010985,3]
[332943391,1721695835824,-500.0,0.00010985,4]
[332943392,1721695835836,-500.0,0.00010985,3]
[332943393,1721695835846,-500.0,0.00010985,4]
[332943394,1721695835855,-1133.02,0.00010985,3]
[332943395,1721695835865,-1133.02,0.00010985,4]
[332943396,1721695835875,-2447.44,0.00010985,3]
[332943397,1721695835884,-1385.71,0.00010985,3]
[332943398,1721695835893,-2447.44,0.00010985,4]
[332943399,1721695835903,-1385.71,0.00010985,4]
[332943400,1721695835913,-500.0,0.00010985,3]
[332943401,1721695835923,-500.0,0.00010985,4]
[332943402,1721695835932,-500.0,0.00010985,3]
[332943403,1721695835942,-500.0,0.00010985,4]
[332943404,1721695835951,-500.0,0.00010985,3]
[332943405,1721695835960,-500.0,0.00010985,4]
[332943406,1721695835970,-500.0,0.00010985,3]
[332943407,1721695835979,-500.0,0.00010985,4]
[332943408,1721695835989,-500.0,0.00010985,3]
[332943409,1721695836001,-500.0,0.00010985,4]
[332943410,1721695836010,-500.0,0.00010985,3]
[332943411,1721695836020,-500.0,0.00010985,4]
[332943412,1721695836029,-500.0,0.00010985,3]
[332943413,1721695836039,-500.0,0.00010985,4]
[332943414,1721695836048,-1938.58,0.00010985,3]
[332943415,1721695836057,-500.0,0.00010985,3]
[332943416,1721695836066,-500.0,0.00010985,4]
[332943417,1721695836076,-859.62,0.00010985,3]
[332943418,1721695836085,-859.62,0.00010985,4]
[332943419,1721695836094,-500.0,0.00010985,3]
[332943420,1721695836103,-500.0,0.00010985,4]
[332943421,1721695836113,-500.0,0.00010985,3]
[332943422,1721695836122,-500.0,0.00010985,4]
[332943423,1721695836131,-2909.22,0.00010985,3]
[332943424,1721695836140,-665.78,0.00010985,3]
[332943425,1721695836150,-665.78,0.00010985,4]
[332943426,1721695836159,-500.0,0.00010985,3]
[332943427,1721695836169,-500.0,0.00010985,4]
[332943428,1721695836179,-870.73,0.00010985,3]
[332943429,1721695836188,-1412.68,0.00010985,3]
[332943430,1721695836198,-500.0,0.00010985,3]
[332943431,1721695836207,-500.0,0.00010985,3]
[332943432,1721695836216,-500.0,0.00010985,4]
[332943433,1721695836225,-500.0,0.00010985,4]
[332943434,1721695836235,-870.73,0.00010985,4]
[332943435,1721695836244,-500.0,0.00010985,3]
[332943436,1721695836253,-500.0,0.00010985,4]
[332943437,1721695836263,-879.06,0.00010985,3]
[332943438,1721695836272,-500.0,0.00010985,3]
[332943439,1721695836281,-500.0,0.00010985,4]
[332943440,1721695836291,-500.0,0.00010985,3]
[332943441,1721695836300,-500.0,0.00010985,4]
[332943442,1721695836309,-500.0,0.00010985,3]
[332943443,1721695836319,-500.0,0.00010985,3]
[332943444,1721695836328,-500.0,0.00010985,4]
[332943445,1721695836338,-500.0,0.00010985,4]
[332943446,1721695836347,-500.0,0.00010985,3]
[332943447,1721695836356,-500.0,0.00010985,4]
[332943448,1721695836365,-650.63,0.00010985,3]
[332943449,1721695836375,-500.0,0.00010985,3]
[332943450,1721695836384,-500.0,0.00010985,4]
[332943451,1721695836393,-500.0,0.00010985,3]
[332943452,1721695836402,-500.0,0.00010985,4]
[332943453,1721695836411,-500.0,0.00010985,3]
[332943454,1721695836421,-500.0,0.00010985,4]
[332943455,1721695836430,-500.0,0.00010985,3]
[332943456,1721695836439,-5090.38,0.00010985,3]
[332943457,1721695836449,-500.0,0.00010985,4]
[332943458,1721695836458,-500.0,0.00010985,3]
[332943459,1721695836467,-500.0,0.00010985,4]
[332943460,1721695836476,-500.0,0.00010985,3]
[332943461,1721695836486,-500.0,0.00010985,4]
[332943462,1721695836496,-229.38261628,0.00010985,3]
[332943463,1721695836505,-2692.91,0.00010985,3]
[332943464,1721695836515,-663.58,0.00010985,3]
[332943465,1721695836524,-663.58,0.00010985,4]
[332943466,1721695836533,-474.8431677,0.00010985,3]
[332943467,1721695836542,-500.0,0.00010985,3]
[332943468,1721695836551,-500.0,0.00010985,4]
[332943469,1721695836561,-500.0,0.00010985,3]
[332943470,1721695836570,-500.0,0.00010985,4]
[332943471,1721695836579,-500.0,0.00010985,3]
[332943472,1721695836589,-603.1,0.00010985,3]
[332943473,1721695836599,-603.1,0.00010985,4]
[332943474,1721695836608,-500.0,0.00010985,3]
[332943475,1721695836617,-500.0,0.00010985,4]
[332943476,1721695836627,-500.0,0.00010985,3]
[332943477,1721695836636,-500.0,0.00010985,4]
[332943478,1721695836646,-3833.33,0.00010985,3]
[332943479,1721695836655,-2150.68,0.00010985,3]
[332943480,1721695836664,-500.0,0.00010985,3]
[332943481,1721695836674,-500.0,0.00010985,3]
[332943482,1721695836683,-500.0,0.00010985,4]
[332943483,1721695836692,-500.0,0.00010985,4]
[332943484,1721695836702,-500.0,0.00010985,3]
[332943485,1721695836711,-500.0,0.00010985,4]
[332943486,1721695836721,-500.0,0.00010985,3]
[332943487,1721695836730,-500.0,0.00010985,4]
[332943488,1721695836740,-596.42,0.00010985,3]
[332943489,1721695836751,-596.42,0.00010985,4]
[332943490,1721695836760,-652.88,0.00010985,3]
[332943491,1721695836770,-652.88,0.00010985,4]
[332943492,1721695836779,-2551.6,0.00010985,3]
[332943493,1721695836789,-500.0,0.00010985,3]
[332943494,1721695836798,-500.0,0.00010985,4]
[332943495,1721695836808,-500.0,0.00010985,3]
[332943496,1721695836818,-500.0,0.00010985,4]
[332943497,1721695836828,-500.0,0.00010985,3]
[332943498,1721695836839,-529.02,0.00010985,3]
[332943499,1721695836849,-500.0,0.00010985,3]
[332943500,1721695836858,-500.0,0.00010985,3]
[332943501,1721695836868,-529.02,0.00010985,4]
[332943502,1721695836878,-500.0,0.00010985,3]
[332943503,1721695836887,-500.0,0.00010985,4]
[332943504,1721695836897,-500.0,0.00010985,4]
[332943505,1721695836907,-500.0,0.00010985,4]
[332943506,1721695836918,-1080.84,0.00010985,3]
[332943507,1721695836927,-500.93,0.00010985,3]
[332943508,1721695836937,-500.93,0.00010985,4]
[332943509,1721695836947,-500.0,0.00010985,3]
[332943510,1721695836956,-763.85,0.00010985,3]
[332943511,1721695836966,-500.0,0.00010985,4]
[332943512,1721695836975,-763.85,0.00010985,4]
[332943513,1721695836984,-500.0,0.00010985,3]
[332943514,1721695836994,-500.0,0.00010985,4]
[332943515,1721695837004,-3123.08,0.00010985,3]
[332943516,1721695837013,-500.0,0.00010985,3]
[332943517,1721695837022,-500.0,0.00010985,4]
[332943518,1721695837032,-1490.02,0.00010985,3]
[332943519,1721695837041,-500.0,0.00010985,3]
[332943520,1721695837051,-500.0,0.00010985,3]
[332943521,1721695837061,-500.0,0.00010985,4]
[332943522,1721695837071,-500.0,0.00010985,4]
[332943523,1721695837080,-2226.58,0.00010985,3]
[332943524,1721695837090,-504.83,0.00010985,3]
[332943525,1721695837099,-504.83,0.00010985,4]
[332943526,1721695837109,-500.59,0.00010985,3]
[332943527,1721695837118,-500.59,0.00010985,4]
[332943528,1721695837127,-500.0,0.00010985,3]
[332943529,1721695837137,-500.0,0.00010985,4]
[332943530,1721695837146,-797.67,0.00010985,3]
[332943531,1721695837156,-797.67,0.00010985,4]
[332943532,1721695837165,-1798.06,0.00010985,3]
[332943533,1721695837175,-500.0,0.00010985,3]
[332943534,1721695837184,-500.0,0.00010985,3]
[332943535,1721695837194,-500.0,0.00010985,4]
[332943536,1721695837203,-538.18,0.00010985,3]
[332943537,1721695837213,-538.18,0.00010985,4]
[332943538,1721695837224,-500.0,0.00010985,3]
[332943539,1721695837233,-500.0,0.00010985,4]
[332943540,1721695837242,-500.0,0.00010985,5]
[332943541,1721695837252,-500.0,0.00010985,3]
[332943542,1721695837262,-500.0,0.00010985,4]
[332943543,1721695837271,-698.66,0.00010985,3]
[332943544,1721695837281,-698.66,0.00010985,4]
[332943545,1721695837291,-500.0,0.00010985,3]
[332943546,1721695837301,-500.0,0.00010985,4]
[332943547,1721695837310,-500.0,0.00010985,5]
[332943548,1721695837320,-1796.35,0.00010985,3]
[332943549,1721695837329,-2202.41,0.00010985,3]
[332943550,1721695837338,-500.0,0.00010985,3]
[332943551,1721695837348,-500.0,0.00010985,4]
[332943552,1721695837358,-500.0,0.00010985,5]
[332943553,1721695837367,-500.0,0.00010985,3]
[332943554,1721695837377,-500.0,0.00010985,4]
[332943555,1721695837386,-500.0,0.00010985,3]
[332943556,1721695837396,-500.0,0.00010985,4]
[332943557,1721695837406,-500.0,0.00010985,3]
[332943558,1721695837415,-500.0,0.00010985,4]
[332943559,1721695837425,-509.82,0.00010985,3]
[332943560,1721695837434,-509.82,0.00010985,4]
[332943561,1721695837444,-509.82,0.00010985,5]
[332943562,1721695837454,-3775.92,0.00010985,3]
[332943563,1721695837463,-3775.92,0.00010985,4]
[332943564,1721695837473,-3775.92,0.00010985,5]
[332943565,1721695837489,-2867.1,0.00010985,3]
[332943566,1721695837503,-624.75,0.00010985,3]
[332943567,1721695837514,-624.75,0.00010985,4]
[332943568,1721695837524,-565.69,0.00010985,3]
[332943569,1721695837533,-565.69,0.00010985,4]
[332943570,1721695837543,-4783.31,0.00010985,3]
[332943571,1721695837553,-500.0,0.00010985,3]
[332943572,1721695837563,-3816.18,0.00010985,3]
[332943573,1721695837573,-500.0,0.00010985,4]
[332943574,1721695837583,-500.0,0.00010985,3]
[332943575,1721695837592,-500.0,0.00010985,4]
[332943576,1721695837602,-978.91,0.00010985,3]
[332943577,1721695837612,-978.91,0.00010985,4]
[332943578,1721695837622,-1728.5,0.00010985,3]
[332943579,1721695837631,-978.91,0.00010985,5]
[332943580,1721695837642,-1728.5,0.00010985,4]
[332943581,1721695837651,-1728.5,0.00010985,5]
[332943582,1721695837661,-500.0,0.00010985,3]
[332943583,1721695837671,-500.0,0.00010985,3]
[332943584,1721695837680,-505.88813687,0.00010985,4]
[332943585,1721695837690,-500.0,0.00010985,4]
[332943586,1721695837700,-1351.76,0.00010985,3]
[332943587,1721695837709,-1351.76,0.00010985,4]
[332943588,1721695837719,-500.0,0.00010985,3]
[332943589,1721695837729,-500.0,0.00010985,4]
[332943590,1721695837738,-2497.61,0.00010985,3]
[332943591,1721695837748,-500.0,0.00010985,3]
[332943592,1721695837758,-939.52,0.00010985,3]
[332943593,1721695837768,-500.0,0.00010985,4]
[332943594,1721695837778,-672.46,0.00010985,3]
[332943595,1721695837787,-672.46,0.00010985,4]
[332943596,1721695837798,-672.46,0.00010985,5]
[332943597,1721695837808,-500.0,0.00010985,3]
[332943598,1721695837818,-500.0,0.00010985,4]
[332943599,1721695837828,-500.0,0.00010985,3]
[332943600,1721695837842,-500.0,0.00010985,3]
[332943601,1721695837852,-500.0,0.00010985,4]
[332943602,1721695837862,-500.0,0.00010985,4]
[332943603,1721695837872,-502.20829027,0.00010985,3]
[332943604,1721695837882,-586.03,0.00010985,3]
[332943605,1721695837892,-586.03,0.00010985,4]
[332943606,1721695837902,-501.9588725,0.00010985,3]
[332943607,1721695837912,-586.03,0.00010985,5]
[332943608,1721695837922,-500.0,0.00010985,3]
[332943609,1721695837931,-500.0,0.00010985,4]
[332943610,1721695837941,-500.0,0.00010985,3]
[332943611,1721695837951,-500.0,0.00010985,3]
[332943612,1721695837961,-500.0,0.00010985,4]
[332943613,1721695837971,-500.0,0.00010985,4]
[332943614,1721695837981,-2967.76,0.00010985,3]
[332943615,1721695837990,-536.17,0.00010985,3]
[332943616,1721695838003,-536.17,0.00010985,4]
[332943617,1721695838013,-3454.96,0.00010985,3]
[332943618,1721695838024,-3993.3,0.00010985,3]
[332943619,1721695838034,-3993.3,0.00010985,4]
[332943620,1721695838043,-3993.3,0.00010985,5]
[332943621,1721695838053,-500.0,0.00010985,3]
[332943622,1721695838062,-500.0,0.00010985,4]
[332943623,1721695838072,-753.13,0.00010985,3]
[332943624,1721695838082,-753.13,0.00010985,4]
[332943625,1721695838092,-500.0,0.00010985,3]
[332943626,1721695838102,-500.0,0.00010985,4]
[332943627,1721695838113,-500.0,0.00010985,3]
[332943628,1721695838122,-500.0,0.00010985,4]
[332943629,1721695838132,-1140.08,0.00010985,3]
[332943630,1721695838141,-1140.08,0.00010985,4]
[332943632,1721695838151,-1140.08,0.00010985,5]
[332943634,1721695838160,-835.06,0.00010985,3]
[332943636,1721695838170,-835.06,0.00010985,4]
[332943638,1721695838562,-8548.84,0.00010985,3]
[332943639,1721695838595,-768.32,0.00010985,3]
[332943640,1721695838606,-768.32,0.00010985,4]
[332943641,1721695838616,-500.0,0.00010985,3]
[332943642,1721695838626,-500.0,0.00010985,4]
[332943643,1721695838635,-5276.36,0.00010985,3]
[332943644,1721695838645,-1871.53,0.00010985,3]
[332943646,1721695838654,-1871.53,0.00010985,4]
[332943648,1721695838664,-852.86,0.00010985,3]
[332943651,1721695838673,-852.86,0.00010985,4]
[332943652,1721695838682,-852.86,0.00010985,5]
[332943653,1721695838692,-2271.32,0.00010985,3]
[332943655,1721695838701,-2271.32,0.00010985,4]
[332943657,1721695838711,-2271.32,0.00010985,5]
[332943658,1721695838720,-500.0,0.00010985,3]
[332943659,1721695838730,-500.0,0.00010985,4]
[332943660,1721695838740,-7772.44,0.00010985,3]
[332943661,1721695838750,-1188.86,0.00010985,3]
[332943662,1721695838760,-1188.86,0.00010985,4]
[332943663,1721695838770,-1108.25,0.00010985,3]
[332943664,1721695838780,-500.0,0.00010985,3]
[332943665,1721695838790,-1108.25,0.00010985,4]
[332943666,1721695838799,-500.0,0.00010985,4]
[332943667,1721695838809,-8216.8,0.00010985,3]
[332943668,1721695838818,-1009.98,0.00010985,3]
[332943669,1721695838829,-1009.98,0.00010985,4]
[332943670,1721695838841,-1009.98,0.00010985,5]
[332943671,1721695838851,-3065.72,0.00010985,3]
[332943672,1721695838860,-3065.72,0.00010985,4]
[332943673,1721695838871,-3065.72,0.00010985,5]
[332943674,1721695838880,-866.8,0.00010985,3]
[332943675,1721695838890,-866.8,0.00010985,4]
[332943676,1721695838899,-1880.06,0.00010985,3]
[332943677,1721695838910,-1880.06,0.00010985,4]
[332943678,1721695838921,-2559.16,0.00010985,3]
[332943679,1721695838930,-9037.36,0.00010985,3]
[332943680,1721695838940,-500.0,0.00010985,3]
[332943681,1721695838950,-500.0,0.00010985,4]
[332943682,1721695838961,-500.0,0.00010985,3]
[332943683,1721695838970,-1994.69,0.00010985,3]
[332943684,1721695838980,-500.0,0.00010985,4]
[332943685,1721695838990,-1994.69,0.00010985,4]
[332943686,1721695839000,-1994.69,0.00010985,5]
[332943687,1721695839009,-256.76162906,0.00010985,5]
[332943688,1721695839019,-1100.7,0.00010985,3]
[332943689,1721695839029,-1100.7,0.00010985,4]
[332943690,1721695839039,-3483.22,0.00010985,3]
[332943691,1721695839048,-13553.41,0.00010985,3]
[332943692,1721695839058,-3483.22,0.00010985,4]
[332943693,1721695839068,-3483.22,0.00010985,5]
[332943694,1721695839077,-500.0,0.00010985,3]
[332943695,1721695839087,-500.0,0.00010985,4]
[332943696,1721695839097,-4739.47,0.00010985,3]
[332943697,1721695839106,-1651.61,0.00010985,3]
[332943698,1721695839116,-1651.61,0.00010985,4]
[332943699,1721695839126,-1651.61,0.00010985,5]
[332943700,1721695839135,-1158.17,0.00010985,3]
[332943701,1721695839145,-1158.17,0.00010985,4]
[332943702,1721695839154,-1158.17,0.00010985,5]
[332943703,1721695839164,-500.0,0.00010985,3]
[332943704,1721695839173,-500.0,0.00010985,3]
[332943705,1721695839183,-500.0,0.00010985,4]
[332943706,1721695839192,-500.0,0.00010985,4]
[332943707,1721695839202,-500.0,0.00010985,3]
[332943708,1721695839212,-500.0,0.00010985,4]
[332943709,1721695839221,-500.0,0.00010985,3]
[332943710,1721695839230,-500.0,0.00010985,4]
[332943711,1721695839240,-2990.31,0.00010985,3]
[332943712,1721695839251,-1665.78,0.00010985,2]
[332943713,1721695839260,-1665.78,0.00010985,2]
[332943714,1721695839270,-1665.78,0.00010985,2]
[332943715,1721695839280,-6868.86,0.00010985,3]
[332943716,1721695839289,-500.0,0.00010985,3]
[332943717,1721695839299,-955.74,0.00010985,3]
[332943718,1721695839309,-955.74,0.00010985,4]
[332943719,1721695839319,-500.0,0.00010985,4]
[332943720,1721695839329,-955.74,0.00010985,5]
[332943721,1721695839338,-1313.08,0.00010985,3]
[332943722,1721695839348,-500.0,0.00010986,2]
[332943723,1721695839358,-504.27574727,0.00010986,2]
[332943724,1721695839368,-500.0,0.00010986,2]
[332943725,1721695839377,-500.0,0.00010986,2]
[332943726,1721695839387,-500.0,0.00010986,2]
[332943727,1721695839397,-500.0,0.00010986,2]
[332943728,1721695839407,-500.0,0.00010986,2]
[332943729,1721695839416,-500.0,0.00010986,2]
[332943730,1721695839425,-500.0,0.00010986,2]
[332943731,1721695839435,-2484.02,0.00010986,2]
[332943732,1721695839445,-2484.02,0.00010986,3]
[332943733,1721695839455,-500.0,0.00010986,2]
[332943734,1721695839464,-500.0,0.00010986,2]
[332943735,1721695839474,-500.0,0.00010986,2]
[332943736,1721695839484,-500.0,0.00010986,2]
[332943737,1721695839495,-500.0,0.00010986,3]
[332943738,1721695839504,-502.88633084,0.00010986,2]
[332943739,1721695839514,-500.0,0.00010986,2]
[332943740,1721695839524,-500.0,0.00010986,2]
[332943741,1721695839534,-565.72,0.00010986,2]
[332943742,1721695839544,-500.0,0.00010986,2]
[332943743,1721695839554,-565.72,0.00010986,3]
[332943744,1721695839563,-1334.89,0.00010986,2]
[332943745,1721695839573,-1334.89,0.00010986,3]
[332943746,1721695839583,-500.0,0.00010986,2]
[332943747,1721695839593,-500.0,0.00010986,2]
[332943748,1721695839603,-500.0,0.00010986,2]
[332943749,1721695839613,-500.0,0.00010986,3]
[332943750,1721695839623,-500.0,0.00010986,2]
[332943751,1721695839633,-306.29268546,0.00010986,2]